bitfinex-derivatives/quotes_ETHF0:USTF0_20210111
["timestamp","ask_amount","ask_price","bid_price","bid_amount"]
[1610387283941,2.8606,992.93,990.24,4.0448]
[1610387284150,1.5786,992.97,990.24,4.0448]
[1610387284320,23.3780035,993.53,990.65,64.1102]
[1610387284523,23.3780035,993.53,990.66,2.0234]
[1610387284728,23.3690577,994.09,990.66,2.0234]
[1610387285143,2.0368,994.15,990.66,2.0234]
[1610387285308,23.3665263,994.12,990.66,2.0234]
[1610387285507,24.9365263,994.12,990.65,65.7682]
[1610387285709,23.370443,994.0,990.65,65.7682]
[1610387286110,23.3745144,993.84,990.65,65.7682]
[1610387286308,23.3753426,993.78,990.65,65.7682]
[1610387286707,0.6369,993.84,990.65,65.7682]
[1610387286907,0.6369,993.84,990.65,1.658]
[1610387287107,23.3759754,993.74,990.65,1.658]
[1610387287307,4.00959,991.89,991.84,4.00959]
[1610387287508,2.054,991.89,991.84,4.00959]
[1610387287909,2.452,992.79,991.84,4.00959]
[1610387288109,0.6369,993.84,991.84,5.69859]
[1610387288110,11.0786662,993.7,991.84,5.69859]
[1610387288510,0.4033301,993.84,991.85,2.0236]
[1610387288709,0.4033301,993.84,991.84,5.69859]
[1610387289309,4.00959,993.3,993.27,4.00959]
[1610387289510,2.358,993.37,993.27,4.00959]
[1610387289909,0.4033301,993.84,993.27,4.00959]
[1610387290312,0.4033301,993.84,992.88,2.122]
[1610387290910,0.4033301,993.84,992.88,1.8374]
[1610387291109,0.4033301,993.84,990.71,0.2268072]
[1610387291310,0.4033301,993.84,822.22,0.22556818]
[1610387291311,4.00959,992.37,992.33,4.00959]
[1610387291511,4.00959,992.37,990.65,1.8851092]
[1610387291710,4.00959,992.37,990.65,1.658]
[1610387291910,5.61759,992.37,990.05,0.22958]
[1610387292310,5.61759,992.37,989.57,0.2305347]
[1610387292713,5.61759,992.37,989.25,0.231405]
[1610387292910,1.9876,992.36,989.25,0.231405]
[1610387293111,1.9876,992.36,988.85,0.2324426]
[1610387293311,1.9876,992.36,990.35,4.00959]
[1610387293513,1.9876,992.36,989.79,2.394]
[1610387294113,1.608,992.37,989.79,2.394]
[1610387295114,9.0,992.36,989.79,2.394]
[1610387295314,4.00959,990.83,990.64,4.00959]
[1610387295514,4.00959,990.83,989.79,2.394]
[1610387295915,5.99559,990.83,989.79,2.394]
[1610387296117,1.0664,990.83,989.79,2.394]
[1610387296317,1.949,991.13,989.79,2.394]
[1610387296515,1.955,991.43,989.79,2.394]
[1610387296915,1.7026,991.43,989.79,2.394]
[1610387297117,0.7208,991.43,989.79,2.394]
[1610387297316,4.00959,991.17,991.04,4.00959]
[1610387297517,5.78559,991.17,989.79,2.394]
[1610387298517,1.776,991.17,989.79,2.394]
[1610387298719,0.7208,991.43,989.54,79.0827]
[1610387298918,2.194,991.67,989.54,80.5997]
[1610387300919,9.0,991.66,989.54,80.5997]
[1610387301121,1.37892,991.63,989.54,80.5997]
[1610387301322,4.00959,990.6,990.13,4.00959]
[1610387301522,2.137,990.87,990.13,4.00959]
[1610387302121,2.137,990.87,989.54,1.517]
[1610387302323,9.0,990.86,989.54,1.517]
[1610387302519,75.7383,990.19,989.54,0.4993]
[1610387302724,77.9383,990.19,987.89,0.2391109]
[1610387302922,77.9383,990.19,987.5,1.1955548]
[1610387302923,77.9383,990.19,987.27,2.2785566]
[1610387303120,77.9383,990.19,987.27,0.2407566]
[1610387303321,0.4,989.54,987.02,2.0029]
[1610387303519,2.049,989.54,988.42,4.00959]
[1610387303721,2.049,989.54,987.8,2.098]
[1610387304722,68.7213,989.44,987.8,2.098]
[1610387304920,1.55296,989.53,987.8,2.098]
[1610387305120,2.049,989.54,987.81,2.0438]
[1610387305521,2.049,989.54,988.68,4.00959]
[1610387306122,2.049,989.54,988.24,2.28]
[1610387306922,2.036,989.53,986.88,0.2428082]
[1610387307124,2.049,989.54,986.68,0.2433993]
[1610387307523,4.00959,988.31,987.93,4.00959]
[1610387308128,4.00959,988.31,986.4,57.1129]
[1610387308326,1.947,988.72,986.77,2.0503]
[1610387308725,1.947,988.72,987.8,1.698]
[1610387309130,1.947,988.72,986.4,57.1129]
[1610387309131,1.947,988.72,987.45,1.808]
[1610387309527,1.947,988.72,987.62,4.00959]
[1610387310329,2.0438,988.71,986.4,57.1129]
[1610387310529,2.0438,988.71,987.62,2.0702]
[1610387310730,1.947,988.72,987.62,2.0702]
[1610387311329,1.947,988.72,986.4,57.1129]
[1610387311535,1.947,988.72,987.62,1.691]
[1610387311737,2.0284,988.71,987.62,1.691]
[1610387311935,2.0284,988.71,987.62,1.3792]
[1610387312135,2.0284,988.71,985.79,58.6401]
[1610387312536,67.7035,988.72,985.79,58.6401]
[1610387312735,67.7035,988.72,985.79,60.8061]
[1610387312936,61.8681,988.72,986.0,0.2458013]
[1610387313136,61.8681,988.72,986.06,0.2455433]
[1610387313335,60.2409,988.72,986.06,0.2455433]
[1610387313536,60.2409,988.72,988.37,4.00959]
[1610387313736,2.0327,988.71,988.38,2.0245]
[1610387314136,2.0327,988.71,986.43,0.4900801]
[1610387314337,2.0327,988.71,986.37,0.2448941]
[1610387314536,2.0327,988.71,986.25,0.2449671]
[1610387314936,2.0327,988.71,986.19,0.244968]
[1610387315136,68.8636,988.46,986.19,0.244968]
[1610387315337,68.8636,988.46,986.0,2.937904]
[1610387315338,71.0636,988.46,986.23,0.2450695]
[1610387315537,4.00959,986.41,986.0,2.203]
[1610387316136,4.00959,986.41,986.0,0.786]
[1610387316737,63.0695,987.39,986.0,0.786]
[1610387317538,4.00959,986.37,986.01,2.0325]
[1610387317939,4.00959,986.37,985.3,4.00959]
[1610387318138,4.00959,986.37,984.54,0.2480464]
[1610387318339,4.00959,986.37,984.44,0.2481511]
[1610387318738,4.00959,986.37,984.23,0.2487546]
[1610387318938,4.00959,986.37,984.24,2.0135]
[1610387319138,4.00959,986.37,984.33,0.2484108]
[1610387319540,4.00959,986.01,984.45,0.2482276]
[1610387319938,4.00959,986.01,984.24,2.103]
[1610387319939,1.773,986.48,984.3,0.2485058]
[1610387320538,2.0028,986.47,984.39,0.2488766]
[1610387320739,1.773,986.48,984.4,2.0366]
[1610387321541,4.00959,985.86,985.25,4.00959]
[1610387321740,4.00959,985.86,984.66,2.0556]
[1610387322741,2.0293,985.85,984.66,2.0556]
[1610387322941,3.8643,985.85,984.66,2.0556]
[1610387323544,4.00959,984.98,984.66,2.0556]
[1610387323745,5.88959,984.98,984.66,2.0556]
[1610387323944,1.88,984.98,984.66,2.0556]
[1610387324746,2.002,984.97,984.66,2.0556]
[1610387325346,1.88,984.98,984.4,2.0366]
[1610387325545,1.927,985.19,984.64,3.08059]
[1610387325746,69.772,985.13,984.4,2.0366]
[1610387325946,69.772,985.13,984.14,2.0281]
[1610387326546,69.772,985.13,983.79,2.0185]
[1610387327449,4.00959,983.8,983.21,2.05]
[1610387327851,9.0137,983.71,983.21,2.05]
[1610387328049,4.00959,983.8,982.24,0.2547552]
[1610387328248,4.00959,983.8,982.24,2.126]
[1610387328249,76.8207,983.29,982.24,2.126]
[1610387328450,78.4957,983.29,982.24,2.126]
[1610387329054,78.4957,983.29,981.39,1.0213208]
[1610387329250,78.4957,983.29,980.9,2.0594]
[1610387329452,4.00959,982.12,981.96,4.00959]
[1610387329651,1.53,982.72,981.96,4.00959]
[1610387329853,1.53,982.72,981.89,1.504]
[1610387330352,9.7526,982.7,981.89,1.504]
[1610387330553,1.53,982.72,981.18,0.9095]
[1610387330755,80.735,982.43,981.18,2.4575]
[1610387330953,80.735,982.43,980.9,2.0594]
[1610387331156,80.735,982.43,980.56,1.0273443]
[1610387331157,1.98167,982.27,980.43,0.1896443]
[1610387331356,69.7247,981.55,980.43,0.1896443]
[1610387331556,4.00959,980.44,980.43,0.0005443]
[1610387331755,4.00959,980.44,980.02,1.9322443]
[1610387331956,6.05719,980.44,980.02,1.2931443]
[1610387332555,6.05719,980.44,978.93,2.0526]
[1610387332757,4.00959,980.44,978.89,1.0407286]
[1610387332955,6.33959,980.44,978.84,1.0409009]
[1610387333155,6.33959,980.44,977.17,4.1636036]
[1610387333156,6.33959,980.44,978.58,1.0428828]
[1610387333555,6.33959,980.44,976.92,4.1715312]
[1610387333556,2.33,980.44,979.51,4.00959]
[1610387333756,2.066,981.08,979.52,2.0236]
[1610387334362,21.1721267,981.54,979.52,2.0236]
[1610387334564,64.9739,981.89,979.52,2.0236]
[1610387335162,21.1603278,982.44,979.52,2.0236]
[1610387335563,21.1562633,982.47,980.93,4.00959]
[1610387335761,21.1562633,982.47,980.93,5.77859]
[1610387335963,21.1556134,982.65,980.93,5.77859]
[1610387336363,21.1575059,982.75,980.93,5.77859]
[1610387336763,21.152886,982.89,980.93,5.77859]
[1610387336964,21.1532712,982.84,980.93,5.77859]
[1610387337162,22.9472712,982.84,980.93,5.77859]
[1610387337364,1.794,982.84,980.94,2.04]
[1610387337566,4.00959,981.84,981.71,4.00959]
[1610387337765,4.00959,981.84,980.94,2.04]
[1610387337985,1.68,982.44,980.94,2.04]
[1610387338563,21.1427393,983.07,980.94,2.04]
[1610387338766,16.1660671,983.0,980.94,2.04]
[1610387338966,16.1636471,983.18,980.94,2.04]
[1610387339567,4.00959,983.1,981.94,4.00959]
[1610387340169,18.639656,983.74,981.94,4.00959]
[1610387340372,2.134,984.02,981.94,4.00959]
[1610387340373,2.0557,983.73,981.94,6.04459]
[1610387340770,9.7891,983.72,981.94,6.04459]
[1610387340969,18.6473683,983.54,981.94,6.04459]
[1610387341176,18.647534,983.44,981.94,2.035]
[1610387341373,2.0102,983.43,981.94,2.035]
[1610387341570,4.00959,981.95,981.94,2.035]
[1610387341769,4.00959,981.95,981.94,2.756]
[1610387341970,4.00959,981.95,980.56,0.2612032]
[1610387342369,4.00959,981.95,980.41,2.0331]
[1610387342370,4.00959,981.95,980.42,0.2614868]
[1610387342569,4.00959,981.95,980.34,0.2618566]
[1610387342971,4.00959,981.95,980.24,0.262223]
[1610387343372,4.00959,981.95,980.2,0.262326]
[1610387343772,4.00959,981.15,980.4,4.00959]
[1610387343972,2.328,982.2,980.41,2.0248]
[1610387344172,1.3773,982.2,980.41,3.6218]
[1610387344373,24.8740494,983.79,980.51,0.2622716]
[1610387344672,24.8649216,984.07,980.79,0.2619286]
[1610387344872,24.8649216,984.07,980.79,1.9729286]
[1610387345073,24.8579945,984.45,981.15,0.2612685]
[1610387345274,24.8580407,984.65,981.34,0.2609859]
[1610387345674,4.00959,983.76,983.28,4.00959]
[1610387345874,4.00959,983.76,983.28,6.20159]
[1610387347075,4.00959,983.76,981.96,58.0432]
[1610387347275,2.392,984.32,981.96,58.0432]
[1610387347478,2.392,984.32,981.96,60.4752]
[1610387347677,2.0515,984.31,981.96,60.4752]
[1610387347878,4.00959,983.48,982.77,4.00959]
[1610387348077,2.0321,983.47,982.78,2.0494]
[1610387348478,2.0348,984.09,982.78,2.0494]
[1610387348681,2.0348,984.09,982.78,3.5884]
[1610387348879,2.392,984.32,982.78,3.5884]
[1610387349079,2.0499,984.65,982.78,3.5884]
[1610387349881,4.00959,983.77,983.06,4.00959]
[1610387350080,4.00959,983.77,983.07,2.0081]
[1610387350281,2.384,984.6,983.07,3.8021]
[1610387350482,2.384,984.6,983.07,1.794]
[1610387350887,0.573,984.6,983.07,1.794]
[1610387351084,23.5876754,985.37,983.07,1.794]
[1610387351282,23.5803796,985.73,983.07,1.794]
[1610387351483,23.5803796,985.73,983.08,2.0561]
[1610387351682,21.0415816,986.16,983.14,0.2600936]
[1610387351888,21.0415816,986.16,985.31,4.00959]
[1610387352086,24.8012606,986.58,985.32,2.0514]
[1610387352283,24.8067948,986.73,985.32,2.0514]
[1610387352683,24.8076975,986.79,985.32,2.0514]
[1610387352888,24.802283,986.84,985.31,6.47159]
[1610387353284,24.798225,987.11,985.31,6.47159]
[1610387353683,24.7930764,987.08,985.31,6.47159]
[1610387353883,22.1349764,987.08,986.84,0.393]
[1610387354084,15.4815432,987.13,986.84,0.393]
[1610387354284,26.0279297,987.84,986.84,0.393]
[1610387354492,26.0274123,987.85,986.84,0.393]
[1610387354885,2.0374,987.86,986.84,0.393]
[1610387355085,2.0374,987.86,986.85,2.0126]
[1610387355886,4.00959,986.86,986.85,2.0126]
[1610387356086,4.00959,986.86,986.59,2.3]
[1610387356286,2.0373,987.28,986.59,2.3]
[1610387356488,1.3929,987.28,986.59,2.3]
[1610387356686,2.0032,987.57,986.59,2.3]
[1610387357087,26.0137827,988.38,986.59,2.3]
[1610387357488,26.0055048,988.43,986.59,2.3]
[1610387357688,26.6220714,989.11,986.59,2.3]
[1610387357887,26.6220714,989.11,988.45,4.00959]
[1610387358089,2.0316,989.15,988.46,2.0079]
[1610387358293,26.614214,989.56,988.46,2.0079]
[1610387358505,2.0382,989.6,988.14,2.0204]
[1610387358701,1.98167,989.51,988.14,2.0204]
[1610387358913,3.90067,989.51,988.14,2.0204]
[1610387359104,1.99592,988.63,988.14,2.0204]
[1610387359297,2.0278,988.62,988.14,2.0204]
[1610387359505,2.0278,988.62,987.06,2.0136]
[1610387359506,2.0278,988.62,984.85,0.2594197]
[1610387359708,2.0278,988.62,984.87,0.2598904]
[1610387359903,4.00959,987.7,987.2,4.00959]
[1610387360106,4.00959,987.7,984.57,1.0395619]
[1610387360107,4.00959,987.7,984.98,0.2597189]
[1610387360500,1.907,987.72,986.11,2.0292]
[1610387360703,1.71,988.15,986.11,4.2312]
[1610387361500,50.7256,988.83,986.11,4.2312]
[1610387361690,2.0102,989.02,986.79,66.491]
[1610387361904,1.919,989.51,986.79,68.141]
[1610387362109,4.00959,989.69,989.01,4.00959]
[1610387362503,4.00959,989.69,988.42,1.605]
[1610387362710,5.53359,989.69,988.23,11.6345]
[1610387362915,5.53359,989.69,986.79,1.65]
[1610387363300,5.53359,989.69,986.8,2.0493]
[1610387363501,5.53359,989.69,986.79,1.65]
[1610387363708,5.53359,989.69,986.8,8.5579]
[1610387363914,5.53359,989.69,986.79,1.65]
[1610387364096,1.524,989.69,988.68,4.00959]
[1610387364499,26.5789305,990.82,988.68,6.23559]
[1610387364701,26.5721145,991.27,988.68,6.23559]
[1610387364897,26.5721145,991.27,988.81,79.1442]
[1610387365099,26.5707389,991.5,988.68,6.23559]
[1610387365297,26.5707389,991.5,988.93,81.1633]
[1610387365498,2.0447,992.21,988.93,83.5623]
[1610387365499,26.5660095,991.63,988.93,83.5623]
[1610387365697,2.0447,992.21,988.93,83.5623]
[1610387365698,26.557032,991.75,988.93,83.5623]
[1610387366099,26.5507724,991.96,988.93,83.5623]
[1610387366503,26.5483909,991.99,988.93,2.399]
[1610387366702,2.0447,992.21,988.93,2.399]
[1610387366703,26.5514175,991.76,988.93,2.399]
[1610387366902,1.9932,991.75,988.93,2.399]
[1610387367102,26.5614835,991.68,988.93,2.399]
[1610387367301,26.5614835,991.68,988.94,2.0271]
[1610387367502,26.5552681,991.46,988.93,2.399]
[1610387367704,1.519,991.46,988.93,2.399]
[1610387367902,2.247,991.46,988.93,2.399]
[1610387368104,25.9378054,991.44,988.93,2.399]
[1610387368503,1.932,991.46,988.94,2.0067]
[1610387368705,25.9374043,991.25,988.94,2.0067]
[1610387368903,1.9881,991.24,988.94,2.0067]
[1610387369102,25.9360639,991.23,988.94,2.0067]
[1610387369502,2.132,991.25,988.94,2.0067]
[1610387370301,1.932,991.46,989.61,67.092]
[1610387370502,1.932,991.46,989.61,68.896]
[1610387371416,1.932,991.46,989.62,1.999]
[1610387372009,5.94159,991.46,990.96,4.00959]
[1610387372403,0.72619,991.46,990.96,4.00959]
[1610387372602,25.9159153,992.18,990.96,4.00959]
[1610387372803,25.9165783,992.24,990.96,4.00959]
[1610387373003,2.019,991.75,990.96,4.00959]
[1610387373403,3.593,991.75,990.96,4.00959]
[1610387373604,25.916319,992.25,990.96,4.00959]
[1610387373804,25.9111168,992.37,990.96,4.00959]
[1610387374004,4.00959,991.43,991.24,4.00959]
[1610387374204,2.0152,991.42,990.85,2.0004]
[1610387374404,2.265,991.64,990.85,2.0004]
[1610387374604,2.265,991.64,990.63,1.957]
[1610387375004,1.805,991.7,990.63,1.957]
[1610387375405,25.9082581,992.48,990.63,1.957]
[1610387375607,1.9979,992.51,990.63,1.957]
[1610387375805,1.9979,992.51,990.64,2.0268]
[1610387376005,4.00959,992.1,990.64,2.0268]
[1610387376205,2.0118,992.09,990.64,2.0268]
[1610387376406,0.121,992.1,990.64,2.0268]
[1610387377005,1.9979,992.51,990.64,2.0268]
[1610387378106,4.00959,992.32,992.01,4.00959]
[1610387378507,1.9979,992.51,992.01,4.00959]
[1610387378706,2.153,992.32,992.01,4.00959]
[1610387379111,2.153,992.32,991.18,2.245]
[1610387380107,2.153,992.32,991.72,4.00959]
[1610387380312,1.9979,992.51,991.73,2.0097]
[1610387380507,3.33829,992.65,991.73,2.0097]
[1610387381006,3.33829,992.65,991.72,6.44859]
[1610387381415,2.44,992.7,991.72,6.44859]
[1610387382007,2.331,992.7,992.69,4.00959]
[1610387383212,2.331,992.7,992.69,6.02199]
[1610387383414,2.331,992.7,992.69,4.00959]
[1610387384012,4.00959,992.99,992.69,4.00959]
[1610387384214,25.8619955,993.8,992.69,4.00959]
[1610387384611,1.98735,995.63,992.69,4.00959]
[1610387384612,25.8602412,993.87,992.69,4.00959]
[1610387385012,76.6294,995.45,992.69,4.00959]
[1610387385013,25.8502802,994.13,992.69,4.00959]
[1610387385411,1.9926,994.25,992.69,4.00959]
[1610387386111,1.9926,994.25,992.56,2.0163]
[1610387386311,3.6296,994.25,992.56,2.0163]
[1610387386711,3.6296,994.25,992.54,1.72]
[1610387386913,66.8616,994.02,990.96,72.8966]
[1610387387110,68.8536,994.02,990.96,72.8966]
[1610387387512,25.8668121,993.65,990.96,72.8966]
[1610387387712,27.6918121,993.65,990.96,72.8966]
[1610387387912,25.8699242,993.39,990.96,72.8966]
[1610387388112,4.00959,992.16,991.35,4.00959]
[1610387388312,1.501,992.16,991.35,4.00959]
[1610387388514,1.501,992.16,991.36,2.0079]
[1610387388713,25.871337,993.35,991.36,2.0079]
[1610387388915,1.795,993.39,991.36,3.7749]
[1610387389915,1.2802,993.65,991.36,3.7749]
[1610387390115,1.2802,993.65,993.61,4.00959]
[1610387390515,1.2802,993.65,992.43,59.8449]
[1610387390816,1.2802,993.65,992.01,1.65]
[1610387392116,1.2802,993.65,992.75,4.00959]
[1610387392816,1.992,994.02,992.01,1.65]
[1610387393017,25.8543736,994.43,992.01,1.65]
[1610387393217,25.8575247,994.34,992.01,1.65]
[1610387393416,27.4735247,994.34,992.01,1.65]
[1610387393616,25.8605584,994.15,992.01,1.65]
[1610387394017,25.8574615,994.28,992.01,1.65]
[1610387394220,4.00959,994.11,993.19,4.00959]
[1610387394429,5.80159,994.11,992.01,1.65]
[1610387395219,11.6041,994.08,992.01,1.65]
[1610387395417,11.6041,994.08,991.93,81.14]
[1610387395617,25.8623713,994.0,991.93,81.14]
[1610387395817,25.8630071,993.87,991.93,81.14]
[1610387396016,28.0630071,993.87,991.93,81.14]
[1610387396218,25.8645495,993.85,991.93,81.14]
[1610387396419,23.8725495,993.85,991.37,6.3265]
[1610387396621,83.5154,993.72,991.37,6.3265]
[1610387397424,9.0,993.71,991.37,6.3265]
[1610387397620,1.55975,992.76,991.36,2.0079]
[1610387397822,3.42675,992.76,991.36,2.0079]
[1610387398226,4.00959,991.37,991.36,2.0079]
[1610387398427,5.81759,991.37,991.36,2.0079]
[1610387399026,5.81759,991.37,990.21,4.00959]
[1610387399223,5.81759,991.37,989.76,65.5524]
[1610387400226,4.00959,990.91,989.76,65.5524]
[1610387400425,5.68259,990.91,989.6,6.1074]
[1610387401026,1.673,990.91,989.6,6.1074]
[1610387402131,4.00959,990.61,988.64,0.2639038]
[1610387402330,6.23659,990.61,988.64,0.2639038]
[1610387402529,6.23659,990.61,988.62,66.6547]
[1610387402830,2.227,990.61,988.62,66.6547]
[1610387404131,2.227,990.61,989.87,4.00959]
[1610387405239,2.227,990.61,989.4,2.122]
[1610387406234,2.227,990.61,990.19,4.00959]
[1610387406733,2.227,990.61,989.4,2.122]
[1610387407435,4.00959,990.64,989.4,2.122]
[1610387407639,2.166,990.61,989.4,2.122]
[1610387408237,2.166,990.61,990.17,4.00959]
[1610387410239,2.166,990.61,990.6,4.00959]
[1610387410639,2.166,990.61,989.9,1.722]
[1610387411541,0.493,990.61,989.9,1.722]
[1610387411742,1.673,990.91,989.9,1.722]
[1610387411942,18.4982239,991.47,989.9,1.722]
[1610387412143,18.4982239,991.47,991.01,4.00959]
[1610387412543,0.71858686,1180.1,991.01,4.00959]
[1610387412544,18.4959426,991.55,991.01,4.00959]
[1610387412747,18.4953946,991.61,990.11,1.897]
[1610387412946,18.4960979,991.62,990.11,1.897]
[1610387413344,18.4955271,991.6,990.11,1.897]
[1610387413545,20.4575271,991.6,990.11,1.897]
[1610387413747,1.962,991.6,990.11,1.897]
[1610387414145,4.00959,991.45,991.19,4.00959]
[1610387414346,1.962,991.6,991.19,4.00959]
[1610387415248,18.4899837,991.87,991.19,4.00959]
[1610387415450,18.486484,991.97,991.19,4.00959]
[1610387415647,18.4860999,992.08,991.19,4.00959]
[1610387416047,18.477949,992.27,991.19,4.00959]
[1610387416247,25.8666657,993.46,991.02,2.054]
[1610387416248,18.4780419,992.39,992.26,4.00959]
[1610387416647,18.4782032,992.44,992.26,4.00959]
[1610387416948,18.4774361,992.47,992.26,4.00959]
[1610387417349,2.7359423,992.37,992.26,4.00959]
[1610387417549,4.3829423,992.37,992.26,4.00959]
[1610387417753,1.647,992.37,992.26,4.00959]
[1610387418150,1.647,992.37,992.36,4.00959]
[1610387418551,18.4647218,992.95,992.36,4.00959]
[1610387418753,18.4628892,993.17,992.36,4.00959]
[1610387418951,18.4630073,993.29,992.36,4.00959]
[1610387419651,18.463734,993.24,992.15,1.807]
[1610387419850,20.196734,993.24,992.15,1.807]
[1610387420051,18.4649265,993.17,992.15,1.807]
[1610387420253,4.00959,992.82,992.34,4.00959]
[1610387420452,5.90559,992.82,992.34,4.00959]
[1610387420853,1.896,992.82,992.34,4.00959]
[1610387422253,1.896,992.82,992.68,4.00959]
[1610387423554,1.896,992.82,992.07,1.547]
[1610387423754,9.7163135,993.22,992.07,1.547]
[1610387423954,2.474,993.0,992.07,1.547]
[1610387424153,4.00959,992.85,992.07,1.547]
[1610387424356,2.474,993.0,992.07,1.547]
[1610387424755,25.8445573,994.53,992.07,1.547]
[1610387424756,20.9188347,993.66,992.07,1.547]
[1610387424955,26.4545452,995.15,992.07,1.547]
[1610387424956,20.9185833,993.67,992.07,1.547]
[1610387425357,20.9163797,993.83,992.07,1.547]
[1610387425656,20.9157804,993.81,992.07,1.547]
[1610387426056,25.4098369,994.01,992.07,1.547]
[1610387426057,20.914173,993.89,992.07,1.547]
[1610387426256,4.00959,993.82,993.61,4.00959]
[1610387426857,20.913518,993.97,993.61,4.00959]
[1610387427057,20.9158678,993.86,993.61,4.00959]
[1610387427258,2.0341,994.01,993.61,4.00959]
[1610387427259,20.9120855,993.91,993.61,4.00959]
[1610387427456,16.1939855,993.91,993.61,4.00959]
[1610387427656,2.0341,994.01,993.61,4.00959]
[1610387428257,4.00959,993.97,993.72,4.00959]
[1610387428458,4.00959,993.97,992.75,2.447]
[1610387428661,4.4668,993.96,992.75,2.447]
[1610387431962,4.4668,993.96,992.64,68.5161]
[1610387432163,0.1659,994.01,992.64,68.5161]
[1610387432369,0.1659,994.01,993.95,4.00959]
[1610387435167,23.3478814,994.85,993.95,4.00959]
[1610387435369,0.68850649,1187.4,993.95,4.00959]
[1610387435370,23.3479226,994.89,993.95,4.00959]
[1610387435768,18.4310036,998.98,993.95,4.00959]
[1610387435769,23.3422159,995.16,993.95,4.00959]
[1610387435969,23.3352232,995.5,993.95,4.00959]
[1610387436168,21.7533232,995.5,993.95,9e-05]
[1610387436369,21.7533232,995.5,995.49,4.00959]
[1610387436569,21.5755232,995.5,995.49,4.00959]
[1610387436771,24.5558283,995.95,995.49,4.00959]
[1610387436971,23.8199283,995.95,995.49,4.00959]
[1610387437170,25.7810967,996.54,995.49,4.00959]
[1610387437578,25.7764821,996.77,995.49,4.00959]
[1610387437770,25.7745566,996.84,995.49,4.00959]
[1610387438178,25.7729757,996.85,995.49,4.00959]
[1610387438370,25.7731704,996.89,996.1,4.00959]
[1610387438770,25.7731704,996.89,994.75,1.943]
[1610387438771,25.7706293,996.88,994.75,1.943]
[1610387438993,59.6926,996.71,994.75,1.943]
[1610387439187,25.772637,996.7,994.75,1.943]
[1610387439374,2.01,996.69,994.75,1.943]
[1610387439575,25.7734829,996.64,994.75,1.943]
[1610387439777,1.826,996.64,994.76,2.003]
[1610387439975,1.826,996.64,994.75,1.943]
[1610387440175,25.7730567,996.63,994.75,1.943]
[1610387440878,25.7780233,996.59,994.75,1.943]
[1610387441279,25.779145,996.55,994.75,1.943]
[1610387441479,25.7785462,996.56,994.75,1.943]
[1610387441679,25.7785462,996.56,994.58,2.0023]
[1610387441883,25.7817712,996.6,994.49,1.652]
[1610387442080,30.0,996.46,994.08,82.3301]
[1610387442281,25.7784175,996.52,994.08,82.3301]
[1610387442483,2.0198,996.51,994.08,84.0601]
[1610387442782,2.0198,996.51,994.09,2.0009]
[1610387444382,1.826,996.64,996.25,4.00959]
[1610387444781,4.00959,996.74,996.25,4.00959]
[1610387445183,4.00959,996.74,995.27,74.6887]
[1610387446389,1.9984,997.14,994.68,2.238]
[1610387446390,4.00959,995.97,995.44,4.00959]
[1610387446591,5.76759,995.97,995.44,4.00959]
[1610387447002,5.76759,995.97,995.28,1.9796]
[1610387447212,30.0,995.87,995.28,1.9796]
[1610387447400,30.0,995.87,994.82,1.9979]
[1610387447598,30.0,995.87,994.56,1.9913]